Cogmind - Beta 16 @@@ ROGUE MODE // 2025.11.21 @ 01:21:21 Player: puppuppit Result: Destroyed self with Shock Bomb Launcher Performance ------------- Evolutions (2) 1000 Regions Visited (8) 1600 Robots Destroyed (227) 1135 Value Destroyed (6962) 6962 Prototype IDs (6) 120 Alien Tech Used (0) 0 Bonus (3414) 3414 TOTAL SCORE: 14231 Bonus ------- Triggered High Security 500 High Alert Combat Kills 2147 Follower Combat Kills 595 Entered Garrisons 200 Friendly Fire -28 Cogmind --------- Core Integrity 0/550 Matter 295/300 Energy 68/160 System Corruption 1% Temperature Cool (0) Movement Treading (250) Ox1 Location -8/Storage Parts ------- > --- POWER (1) -------- Light Nuclear Core > --- PROPULSION (3) --- Armored Treads Armored Treads Armored Treads > --- UTILITY (4) ------ High-capacity Storage Unit Improved Core Shielding Hacking Suite High-powered Tractor Beam > --- WEAPON (3) ------- Minigun Gauss Rifle Shock Bomb Launcher > --- INVENTORY (20) --- Fission Core Light Treads Improved Treads Advanced Treads Large Storage Unit High-capacity Matter Pod (200) High-capacity Matter Pod (200) Experimental Sensor Array Advanced Targeting Computer Weapon Mount Recoil Stabilizer Recoil Stabilizer Hardened Medium Armor Plating Reactive Plating Graphene Brace Drone Bay (2/2) Flak Gun Missile Launcher Plasma Cutter Peak State ------------ > --- POWER ------------ Light Nuclear Core > --- PROPULSION ------- Armored Treads Advanced Treads Medium Treads > --- UTILITY ---------- High-capacity Storage Unit Improved Core Shielding Hacking Suite High-powered Tractor Beam > --- WEAPON ----------- Gauss Rifle Flak Gun Flak Gun > --- INVENTORY -------- Fission Core Light Treads Light Treads Armored Treads Large Storage Unit High-capacity Matter Pod High-capacity Matter Pod Experimental Sensor Array Advanced Targeting Computer Weapon Mount Recoil Stabilizer Hardened Medium Armor Plating Reactive Plating System Shield Minigun Gauss Rifle Shock Bomb Launcher Improved Grenade Launcher Missile Launcher Plasma Cutter [Rating: 43] Favorites ----------- Power Reinforced Ion Engine Engine Reinforced Ion Engine Power Core Light Nuclear Core Propulsion Armored Treads Treads Armored Treads Utility High-capacity Storage Unit Device Improved Terrain Scanner Storage High-capacity Storage Unit Processor Armor Integrity Analyzer Hackware System Shield Protection Weapon Shielding Weapon Heavy Assault Rifle Energy Gun EM Pulse Gun Ballistic Gun Heavy Assault Rifle Launcher Shock Bomb Launcher Special Weapon Plasma Cutter Build | -11 -10 -10 -10 -9 -8 -8 -8 -8 ------- Run | Yrd Mat Min Exi Min Mat Gar Mat Sto Slots Evolved 4 | . . . . . 4 . . . Power . | . . . . . . . . . Propulsion 1 | . . . . . 1 . . . Utility 2 | . . . . . 2 . . . Weapon 1 | . . . . . 1 . . . Parts Attached 73 | 8 7 5 . 4 28 5 11 5 Power 6 | 2 1 . . 1 . . 1 1 Engine 3 | 2 . . . 1 . . . . Core 3 | . 1 . . . . . 1 1 Reactor . | . . . . . . . . . Propulsion 18 | 2 . 2 . 1 9 . 3 1 Treads 18 | 2 . 2 . 1 9 . 3 1 Leg . | . . . . . . . . . Wheel . | . . . . . . . . . Hover . | . . . . . . . . . Flight . | . . . . . . . . . Utility 23 | 2 3 1 . 1 11 . 3 2 Device 4 | 1 . . . . 1 . 1 1 Storage 4 | 1 2 . . . 1 . . . Processor 3 | . . . . . 3 . . . Hackware 4 | . . . . . 3 . . 1 Protection 8 | . 1 1 . 1 3 . 2 . Artifact . | . . . . . . . . . Weapon 26 | 2 3 2 . 1 8 5 4 1 Energy Gun 3 | 2 1 . . . . . . . Energy Cannon . | . . . . . . . . . Ballistic Gun 15 | . 1 2 . . 6 4 2 . Ballistic Cannon . | . . . . . . . . . Launcher 7 | . 1 . . 1 2 . 2 1 Special Weapon 1 | . . . . . . 1 . . Impact Weapon . | . . . . . . . . . Slashing Weapon . | . . . . . . . . . Piercing Weapon . | . . . . . . . . . Special Melee Weapon . | . . . . . . . . . Unidentified Prototypes 2 | . . . . . 2 . . . Parts Lost 18 | . . . . 1 6 1 8 2 Power 2 | . . . . . . . 1 1 Propulsion 4 | . . . . . 2 . 2 . Utility 3 | . . . . 1 1 . 1 . Weapon 9 | . . . . . 3 1 4 1 Highest Loss Streak 4 | . . . . 1 2 1 4 1 To Critical Strikes . | . . . . . . . . . Average Backups 17 | 1 10 14 15 14 19 19 19 18 Power 1 | . . . . 2 1 1 . 1 Propulsion 3 | . 1 2 3 3 5 5 3 2 Utility 7 | . 5 6 6 5 7 9 9 11 Weapon 3 | . 3 6 5 3 3 4 3 2 Tool/Special . | . . . . . . . . . Unused Backups 42 | . 2 1 4 3 17 2 4 9 Power 3 | . . . . . 2 . . 1 Propulsion 11 | . . . . . 5 . 4 2 Utility 22 | . 2 . 2 2 8 2 . 6 Weapon 6 | . . 1 2 1 2 . . . Tool/Special . | . . . . . . . . . Average Slot Usage (%) 99 | . 100 100 100 99 99 100 99 97 Engine 5 | . 7 . . 7 8 9 2 . Core 5 | . 6 14 14 6 . . 5 8 Treads 27 | . 28 28 28 28 26 27 26 26 Device 1 | . 6 . . . . . 1 . Storage 10 | . 14 14 14 14 9 9 9 9 Processor 5 | . . . . . 12 9 6 . Hackware 9 | . . . . . 11 18 15 16 Protection 6 | . 7 14 14 13 2 . 4 9 Energy Gun 1 | . 16 . . . . . . . Ballistic Gun 24 | . 10 27 28 27 26 20 26 26 Peak Build Rating 43 | 9 10 12 13 13 42 42 43 43 Average Rating 28 | 6 9 11 12 12 30 39 41 40 On Entrance 19 | . 9 10 12 13 13 39 40 41 Avg Prop Armor Cover (%) . | . . . . . . . . . Naked Turns . | . . . . . . . . . Heaviest Build 69 | 15 30 34 34 37 60 63 69 66 Greatest Support 70 | 40 40 40 40 40 68 68 70 62 Greatest Overweight (x) 1 | . . . . . . . 1 1 Average Overweight (x) . | . . . . . . . . . Largest Inventory Capacity 20 | 8 15 15 15 15 20 20 20 20 Average Capacity 17 | 7 12 15 15 15 19 20 20 20 Most Carried 20 | 2 15 15 15 15 20 20 20 20 Average Carried 17 | 1 10 14 14 14 19 19 19 18 Final Capacity 20 | 8 15 15 15 15 20 20 20 20 Final Carried 20 | 2 15 15 15 15 20 20 17 19 Class Distribution -------------------- 29% | Scavenger-Gunner 22% | Scavenger-Mutant 12% | Scavenger-Tank 11% | Mutant 9% | Hacker-Gunner 8% | Commander-Gunner Dominant Class ---------------- Mutant | -10/Materials Scavenger-Mutant | -10/Mines Scavenger-Mutant | -10/Exiles Scavenger-Mutant | -9/Mines Scavenger-Gunner | -8/Materials Hacker-Gunner | -8/Garrison Commander-Gunner | -8/Materials Scavenger-Tank | -8/Storage Resources | -11 -10 -10 -10 -9 -8 -8 -8 -8 ----------- Run | Yrd Mat Min Exi Min Mat Gar Mat Sto Matter Collected 5751 | 280 325 233 . 249 2171 60 1501 932 Remotely 660 | . . . . . . . 573 87 Salvage Created 7978 | 195 610 187 . 341 3222 50 2023 1350 Parts 462 | 13 57 21 . 19 184 3 99 66 Haulers Intercepted 12 | . 2 . . . 6 . 1 3 Recyclers Shooed 10 | . 2 . . 1 3 . . 4 Parts Field Recycled . | . . . . . . . . . Retrieved Matter . | . . . . . . . . . Parts Self-Destructed . | . . . . . . . . . Prevented . | . . . . . . . . . Parts Restored . | . . . . . . . . . Kills | -11 -10 -10 -10 -9 -8 -8 -8 -8 ------- Run | Yrd Mat Min Exi Min Mat Gar Mat Sto Combat Hostiles Destroyed 137 | . 11 7 . 8 53 . 40 18 Guns 100 | . 10 4 . 6 31 . 31 18 AOE 37 | . 1 3 . 2 22 . 9 . Classes Destroyed 18 | 3 6 . . 2 4 . 3 . Worker 25 | 2 3 1 . 2 8 . 5 4 Builder 15 | . 2 1 . 1 6 . 4 1 Tunneler 7 | 4 1 1 . . 1 . . . Hauler 12 | . 2 . . . 6 . 1 3 Recycler 13 | 1 . . . . 8 . 1 3 Mechanic 1 | . 1 . . . . . . . Operator 3 | . . . . . 3 . . . Watcher 12 | . 3 . . . 5 . 2 2 Swarmer 28 | . 6 5 . . 15 . 2 . Grunt 66 | . 5 2 . 6 23 . 21 9 Brawler 8 | . . . . 1 1 . 5 1 Duelist 4 | . . . . 1 1 . 2 . Protector 1 | . . . . . . . 1 . Sentry 24 | . . . . . 10 . 6 8 Demolisher 2 | . . . . . . . 2 . Specialist 2 | . . . . . 2 . . . Hunter 2 | . . . . . . . 2 . Heavy 2 | . . . . . 1 . 1 . Best Kill Streak 9 | 4 5 3 . 3 9 . 9 5 Combat Bots Only 9 | . 4 3 . 3 8 . 9 3 Max Kills in Single Turn 4 | 1 2 3 . 2 4 . 3 2 Gunslinging . | . . . . . . . . . Exploded 4 | . 1 3 . 1 4 . 2 . Melee . | . . . . . . . . . Uniques/NPCs Destroyed . | . . . . . . . . . Combat | -11 -10 -10 -10 -9 -8 -8 -8 -8 -------- Run | Yrd Mat Min Exi Min Mat Gar Mat Sto Hostile Shots Fired 497 | . 36 16 . 21 173 . 180 71 Missed 131 | . 10 10 . 7 50 . 45 9 Hits 366 | . 26 6 . 14 123 . 135 62 Melee 12 | . . . . 3 3 . 3 3 Projectile 354 | . 26 6 . 11 120 . 132 59 AOE 2 | . . . . . . . 2 . Critical Strikes 11 | . . . . 1 4 . 5 1 Actively Blocked 1 | . . . . . 1 . . . Damage Taken 6268 | . 258 97 . 234 2069 90 2536 984 Core 676 | . 73 21 . 31 132 . 308 111 Absorbed by Shields . | . . . . . . . . . Redirected to Shielding 136 | . 15 . . . 55 . 25 41 Ignored by Resistances 52 | . . . . . 12 . 40 . Regen/Repaired (Parts) 1943 | . . . . . 208 . 559 1176 Core Remaining (%) 75 | 100 . . . 50 . . . . Volleys Fired 404 | 14 52 19 . 21 149 5 84 60 Largest 3 | 2 2 2 . 2 3 1 3 3 Hottest 100 | 100 90 46 . 56 82 36 92 84 Shots Fired 1025 | 28 101 31 . 41 413 5 239 167 Gun 971 | 28 98 30 . 37 393 . 222 163 Cannon . | . . . . . . . . . Launcher 50 | . 3 1 . 4 20 1 17 4 Special 4 | . . . . . . 4 . . Kinetic 887 | . 42 30 . 37 393 . 222 163 Thermal 39 | 28 7 . . . . 4 . . Explosive 32 | . 3 1 . 4 13 . 9 2 Electromagnetic 67 | . 49 . . . 7 1 8 2 Robot Hit Streak 19 | 7 15 6 . 5 19 3 13 12 Robot Miss Streak 7 | 4 4 2 . 2 5 1 7 7 Penetration Max 1 | . . . . . 1 . 1 1 Secondary Targets 17 | . 2 . . . 5 . 8 2 Max Gunslinging Chain 1 | . 1 . . . 1 . 1 1 Shots Hit Robots 663 | 19 60 20 . 24 266 3 167 104 Core Hits 483 | 8 32 11 . 19 147 3 177 86 Critical Kills 5 | . . . . . 3 . 1 1 Critical Parts Destroyed 9 | . 2 . . 1 3 . 2 1 Critical Strikes 15 | . 3 . . 1 6 . 3 2 Burn 1 | . 1 . . . . . . . Destroy 14 | . 2 . . 1 6 . 3 2 Melee Attacks . | . . . . . . . . . Impact . | . . . . . . . . . Slashing . | . . . . . . . . . Piercing . | . . . . . . . . . Sneak Attacks . | . . . . . . . . . Combat Hostiles . | . . . . . . . . . Follow-up Attacks . | . . . . . . . . . Damage Inflicted 16064 | 234 807 461 . 742 6366 138 4982 2334 Guns 11742 | 234 687 315 . 376 4588 . 3229 2313 Cannons . | . . . . . . . . . Explosions 4261 | . 120 146 . 366 1778 106 1724 21 Melee . | . . . . . . . . . Ramming 29 | . . . . . . . 29 . Kinetic 11006 | . 185 315 . 376 4588 . 3229 2313 Thermal 609 | 234 78 . . 138 127 32 . . Explosive 2912 | . 81 146 . 228 1110 106 1241 . Electromagnetic 1508 | . 463 . . . 541 . 483 21 Impact . | . . . . . . . . . Slashing . | . . . . . . . . . Piercing . | . . . . . . . . . Highest Corruption 1 | . . . . . . . 1 1 Average Corruption 1 | . . . . . . . 1 1 Corruption Purged . | . . . . . . . . . Corruption Blocked . | . . . . . . . . . Effects 11 | . . . . . . . . 11 Message Errors 1 | . . . . . . . . 1 Matter Fused 2 | . . . . . . . . 2 Heat Flow Errors 3 | . . . . . . . . 3 Energy Discharges 2 | . . . . . . . . 2 Data Loss (minor) 3 | . . . . . . . . 3 Overload Shots . | . . . . . . . . . Overflow Damage 95 | . . 12 . 4 72 . 7 . Projectiles . | . . . . . . . . . Explosions 95 | . . 12 . 4 72 . 7 . Melee . | . . . . . . . . . Knockbacks . | . . . . . . . . . Impact . | . . . . . . . . . Kinetic . | . . . . . . . . . Secondary . | . . . . . . . . . Self-Inflicted Damage 171 | . 33 . . . 21 . 101 16 Shots 7 | . 1 . . . 1 . 4 1 Rammed 2 | . . . . . . . 2 . Targets Rammed 2 | . . . . . . . 2 . Kicked . | . . . . . . . . . Crushed . | . . . . . . . . . Highest Temperature 309 | 195 120 33 . 30 309 . 256 158 Average Temperature 45 | 77 34 19 . 10 35 . 66 36 Received Heat Transfer 2361 | . 15 42 . 81 729 . 1071 423 Siege Activations . | . . . . . . . . . Martial Activations . | . . . . . . . . . Shielding Activations . | . . . . . . . . . Robots Disrupted . | . . . . . . . . . Combat Hostiles . | . . . . . . . . . Robots Corrupted . | . . . . . . . . . Combat Hostiles . | . . . . . . . . . Parts Fried 2 | . . . . . 2 . . . Impact Corruptions . | . . . . . . . . . Robots Melted . | . . . . . . . . . Combat Hostiles . | . . . . . . . . . Parts Melted 2 | 1 . . . . . . 1 . Heat Transferred 1299 | 703 185 . . 200 100 111 . . Parts Sabotaged . | . . . . . . . . . Parts Stolen . | . . . . . . . . . Parts Stripped . | . . . . . . . . . Power Chain Reactions 3 | . 1 . . . 1 . . 1 Alert | -11 -10 -10 -10 -9 -8 -8 -8 -8 ------- Run | Yrd Mat Min Exi Min Mat Gar Mat Sto Maximum Alert Level 5 | . 1 . . . 3 4 5 4 Low Security (%) 44 | 100 83 100 . 100 50 . . . Level 1 3 | . 16 . . . 4 . . . Level 2 18 | . . . . . 24 . . 81 Level 3 17 | . . . . . 19 48 31 12 Level 4 14 | . . . . . . 51 57 5 Level 5 . | . . . . . . . . . High Security 1 | . . . . . . . 10 . Max Security . | . . . . . . . . . Sterilizations 2 | . . . . . 1 . 1 . Peak Influence 1906 | 15 243 87 . 137 1086 1559 1906 1140 Initial 1100 | . 3 87 . . 13 703 759 1100 Average 520 | 3 82 22 . 57 376 1087 1273 631 Influence Increases 6366 | 35 503 183 . 358 1849 866 1821 751 Destroy 0b10 Robot/C 3100 | . 220 140 . 200 1100 . 1080 360 Destroy 0b10 Robot/NC 465 | 35 60 15 . 15 185 5 85 65 Destroy Leader 680 | . 60 20 . 40 262 . 188 110 Allied During Kill 321 | . . . . 13 9 1 298 . Successful Hack 166 | . 30 . . . 49 41 22 24 Select Force Hacks 120 | . 60 . . . 60 . . . Disable Machine 270 | . . . . 45 15 30 60 120 Anti-Garrison Action 750 | . . . . . . 750 . . Destroy Structure 359 | . 28 8 . 45 139 39 73 27 Lose Combat Pursuer 135 | . 45 . . . 30 . 15 45 Influence Decreases 5839 | 30 283 408 . 323 802 389 1474 2130 Entered New Map 2443 | . 2 138 . . 22 379 800 1102 Time Decay 2606 | 30 281 270 . 293 700 . 494 538 Lost Part 180 | . . . . 10 60 10 80 20 Lost Ally 160 | . . . . 20 20 . 100 20 Purge Threat 450 | . . . . . . . . 450 Squads Dispatched 25 | . 2 . . . 12 . 11 . Investigation 6 | . 2 . . . 3 . 1 . Extermination . | . . . . . . . . . Reinforcement 8 | . . . . . 6 . 2 . Assault 8 | . . . . . . . 8 . Garrison 3 | . . . . . 3 . . . Intercept . | . . . . . . . . . Searches Triggered . | . . . . . . . . . Construction Impeded 2 | . . . . . 1 . 1 . Haulers Reinforced . | . . . . . . . . . Active Scanning Responses . | . . . . . . . . . Cargo Convoy Interrupts . | . . . . . . . . . Stealth | -11 -10 -10 -10 -9 -8 -8 -8 -8 --------- Run | Yrd Mat Min Exi Min Mat Gar Mat Sto Distress Signals 7 | . . . . . 1 . 4 2 Communications Jammed . | . . . . . . . . . Distress Signals . | . . . . . . . . . Times Spotted 199 | . 18 9 . 9 64 . 78 21 Peak Tracking Total 9 | . 4 3 . 3 8 . 9 5 Tactical Retreats 9 | . 3 . . . 2 . 1 3 Traps | -11 -10 -10 -10 -9 -8 -8 -8 -8 ------- Run | Yrd Mat Min Exi Min Mat Gar Mat Sto Traps Triggered 5 | . . . . . 1 2 2 . Indirectly 2 | . . . . . 1 . 1 . Trap Hack Attempts . | . . . . . . . . . Triggered . | . . . . . . . . . Disarmed . | . . . . . . . . . Reprogrammed . | . . . . . . . . . Reused . | . . . . . . . . . Traps Extracted . | . . . . . . . . . Installed 4 | . . 4 . . . . . . Triggered . | . . . . . . . . . Machines | -11 -10 -10 -10 -9 -8 -8 -8 -8 ---------- Run | Yrd Mat Min Exi Min Mat Gar Mat Sto Machines Disabled 25 | . . . . 3 1 8 5 8 Max in Single Turn 1 | . . . . 1 1 1 1 1 Garrison Relay 4 | . . . . . . 4 . . Phase Generator 1 | . . . . . . 1 . . Machines Repaired . | . . . . . . . . . Machines Dismantled 6 | . . . . . . 6 . . Machines Sabotaged . | . . . . . . . . . Overloaded Fab Kills . | . . . . . . . . . Hacking | -11 -10 -10 -10 -9 -8 -8 -8 -8 --------- Run | Yrd Mat Min Exi Min Mat Gar Mat Sto Machines Accessed 45 | . 9 . 1 . 13 4 11 7 Terminals 31 | . 7 . . . 8 4 7 5 Fabricators . | . . . . . . . . . Repair Stations 5 | . . . . . 2 . 1 2 Recycling Units 5 | . 2 . . . 2 . 1 . Scanalyzers 1 | . . . . . . . 1 . Garrison Access 2 | . . . . . 1 . 1 . Total Hacks 223 | . 35 . 1 . 57 9 67 54 Successful 153 | . 20 . 1 . 35 5 49 43 Failed 69 | . 14 . . . 22 4 18 11 Catastrophic 7 | . 1 . . . 1 1 2 2 Database Lockouts 1 | . 1 . . . . . . . Manual 133 | . 33 . . . 42 5 34 19 Terminals 131 | . 26 . . . 34 9 31 31 Fabricators . | . . . . . . . . . Repair Stations 43 | . . . . . 10 . 10 23 Recycling Units 22 | . 9 . . . 8 . 5 . Scanalyzers 17 | . . . . . . . 17 . Garrison Access 9 | . . . . . 5 . 4 . Terminal Hacks 30 | . 4 . 1 . 7 3 4 11 Record 2 | . . . 1 . . . 1 . Part Schematic 2 | . . . . . . . . 2 Robot Analysis 12 | . 2 . . . 5 . 2 3 Prototype ID Bank 2 | . 1 . . . . . 1 . Open Door 2 | . . . . . . 1 . 1 Terminal Index 3 | . 1 . . . 1 . . 1 Unreport Threat 3 | . . . . . . . . 3 Locate Traps 1 | . . . . . 1 . . . Hauler Manifests 1 | . . . . . . . . 1 Garrison Registry 1 | . . . . . . 1 . . Security Stations 1 | . . . . . . 1 . . Fabricator Hacks . | . . . . . . . . . Repair Station Hacks 38 | . . . . . 7 . 8 23 Scan Component 20 | . . . . . 4 . 4 12 Repair 18 | . . . . . 3 . 4 11 Recycling Unit Hacks 3 | . 1 . . . 1 . 1 . Retrieve Components 3 | . 1 . . . 1 . 1 . Scanalyzer 17 | . . . . . . . 17 . Insert Component 7 | . . . . . . . 7 . Analyze 9 | . . . . . . . 9 . Retrieve Study 1 | . . . . . . . 1 . Garrison Access Hacks 2 | . . . . . 1 . 1 . Unlock Access 2 | . . . . . 1 . 1 . Unauthorized Hacks 63 | . 15 . . . 19 2 18 9 Terminals 42 | . 8 . . . 9 2 14 9 Botnet 17 | . 2 . . . 3 2 6 4 Operators 4 | . 1 . . . 1 . 1 1 Skim 21 | . 5 . . . 5 . 7 4 Fabricators . | . . . . . . . . . Repair Stations . | . . . . . . . . . Recycling Units 17 | . 7 . . . 7 . 3 . Reject 3 | . 1 . . . 1 . 1 . Recyclers 5 | . 2 . . . 2 . 1 . Mask 5 | . 2 . . . 2 . 1 . Tunnel 4 | . 2 . . . 2 . . . Scanalyzers . | . . . . . . . . . Garrison Access 4 | . . . . . 3 . 1 . Reprogram 2 | . . . . . 1 . 1 . Intercept 1 | . . . . . 1 . . . Watchers 1 | . . . . . 1 . . . Data Cores Recovered 1 | . . . . . . . 1 . Used . | . . . . . . . . . Hacking Detections 39 | . 8 . . . 12 2 10 7 Full Trace Events . | . . . . . . . . . Feedback Events . | . . . . . . . . . Feedback Blocked . | . . . . . . . . . Robot Schematics Acquired . | . . . . . . . . . Robots Built . | . . . . . . . . . Authchips . | . . . . . . . . . Time . | . . . . . . . . . Total Robot Build Rating . | . . . . . . . . . Part Schematics Acquired 9 | . . . . . . . 7 2 Parts Built . | . . . . . . . . . Authchips . | . . . . . . . . . Time . | . . . . . . . . . Total Part Build Rating . | . . . . . . . . . Part Studies Acquired 1 | . . . . . . . 1 . Parts Repaired 18 | . . . . . 3 . 4 11 Time 781 | . . . . . 90 . 179 512 Parts Recycled . | . . . . . . . . . Recycled Matter . | . . . . . . . . . Retrieved Matter . | . . . . . . . . . Retrieved Components 16 | . 4 . . . 9 . 3 . Parts Scanalyzed 7 | . . . . . . . 7 . Part Schematics Acquired 7 | . . . . . . . 7 . Parts Damaged 1 | . . . . . . . 1 . Bothacking | -11 -10 -10 -10 -9 -8 -8 -8 -8 ------------ Run | Yrd Mat Min Exi Min Mat Gar Mat Sto Used RIF Installer . | . . . . . . . . . Robots Hacked . | . . . . . . . . . Non-combat . | . . . . . . . . . Combat . | . . . . . . . . . Robot Hacks Applied . | . . . . . . . . . Relay Couplers Released 14 | . . . . . . 14 . . Machine Destruction 14 | . . . . . . 14 . . Fabnet Peak Effective % . | . . . . . . . . . Robots Rewired 6 | . . . . . . 6 . . Allies Hacked . | . . . . . . . . . Hacks Repelled . | . . . . . . . . . Allies | -11 -10 -10 -10 -9 -8 -8 -8 -8 -------- Run | Yrd Mat Min Exi Min Mat Gar Mat Sto Total Allies 10 | . . 1 . 2 1 6 . . Largest Group 7 | . . 1 1 2 1 7 7 . Highest-Rated Group 136 | . . 31 31 44 31 136 136 . Highest-Rated Ally 31 | . . 31 31 31 31 31 31 . Initial Warlord ECA Mod 11 | . . . . . . . 11 11 Total Orders . | . . . . . . . . . Ally Attacks 118 | . . . . 18 4 . 96 . Total Damage 1950 | . . . . 260 85 . 1605 . Kills 22 | . . . . 2 2 . 18 . Allies Corrupted . | . . . . . . . . . Allies Melted . | . . . . . . . . . Intel | -11 -10 -10 -10 -9 -8 -8 -8 -8 ------- Run | Yrd Mat Min Exi Min Mat Gar Mat Sto Active Infowar (turns) 1259 | 48 569 . . . 642 . . . Sensors 11 | . . . . . 11 . . . Terrain 617 | 48 569 . . . . . . . Machine Analysis 631 | . . . . . 631 . . . Robot Analysis Total 12 | . 2 . . . 5 . 2 3 Derelict Logs Recovered 4 | . . 1 . 3 . . . . Drone Launches 2 | . . . . . . . . 2 Drone Recoveries . | . . . . . . . . . Exploration | -11 -10 -10 -10 -9 -8 -8 -8 -8 ------------- Run | Yrd Mat Min Exi Min Mat Gar Mat Sto Turns Passed 11190 | 130 1169 973 425 1078 3126 1278 1477 1534 Spaces Moved 5471 | 49 616 564 264 624 1456 649 659 590 Core 2 | 2 . . . . . . . . Treads 5469 | 47 616 564 264 624 1456 649 659 590 Legs . | . . . . . . . . . Wheels . | . . . . . . . . . Hover . | . . . . . . . . . Flight . | . . . . . . . . . Fastest Speed 50 | 50 160 160 160 160 160 166 158 161 Average Speed 164 | 155 160 160 160 160 166 166 163 173 Slowest Speed 250 | 160 160 160 160 160 170 166 245 250 Overloaded Moves . | . . . . . . . . . Propulsion Burnouts . | . . . . . . . . . Robots Hopped . | . . . . . . . . . Potential Cave-ins . | . . . . . . . . . Cave-ins Triggered . | . . . . . . . . . Exploration Rate (%) 70 | 5 78 96 58 93 92 87 60 68 Regions Visited 8 Branch Regions 4 Pre-discovered Areas 9 | . 2 . 1 . 5 . 1 . Known Exits Taken 3 | . 1 . . . 1 . 1 . Unknown Exits Taken 4 | 1 . 1 1 1 . . . . Scrap Searched 3 | . . 1 . 2 . . . . Spaces Dug 92 | . 13 . . 10 39 . . 30 Terrain Destroyed 425 | . 26 8 . 61 145 84 71 30 Melee . | . . . . . . . . . Projectile 5 | . . . . . 2 . 3 . AOE 420 | . 26 8 . 61 143 84 68 30 Terrain Rammed . | . . . . . . . . . Walls Destroyed . | . . . . . . . . . Machines Disabled . | . . . . . . . . . Actions | -11 -10 -10 -10 -9 -8 -8 -8 -8 --------- Run | Yrd Mat Min Exi Min Mat Gar Mat Sto Total 6793 | 71 707 608 271 662 1856 786 865 967 Wait 469 | . 4 . . . 116 7 60 282 Move 5463 | 48 615 563 263 623 1455 648 658 590 Hop . | . . . . . . . . . Pick Up 107 | 1 18 5 4 4 43 5 13 14 Fast Attach 21 | 7 . 2 . 1 5 1 3 2 Attach 31 | . 1 . . 1 12 1 8 8 Detach 10 | . 1 . . . 4 1 3 1 Swap 102 | 1 9 5 . 8 37 7 26 9 Drop 72 | . 7 10 4 4 35 4 8 . Fire 404 | 14 52 19 . 21 149 5 84 60 Melee . | . . . . . . . . . Ram . | . . . . . . . . . Kick . | . . . . . . . . . Crush 2 | . . . . . . . 2 . Escape Stasis . | . . . . . . . . . Rewire 80 | . . . . . . 80 . . Trap 4 | . . 4 . . . . . . Miscellaneous 28 | . . . . . . 27 . 1 Route ------- -11/Scrapyard -10/Materials (discovered 6 exits: *Mat x3 / *Min x2 / Sub) -10/Mines (discovered 4 exits: *Mat x2 / *Exi / *Sub) -10/Exiles -9/Mines (discovered 2 exits: *Mat x2) -8/Materials (discovered 5 exits: *Fac x3 / *Sto / Gar) -8/Garrison (discovered 3 exits: *Mat x3) -8/Materials (discovered 3 exits: *Fac / *Sto / Gar) -8/Storage (discovered 2 exits: *Fac / Rec) History --------- Turn | Location | Event 27 | -11/Scrapyard | Discovered new exit (range 15) 131 | -11/Scrapyard | Entered Materials 312 | -10/Materials | Build established: Mutant 547 | -10/Materials | Discovered new exit (range 4) 662 | -10/Materials | Discovered new exit (range 15) 735 | -10/Materials | Central database locked down 778 | -10/Materials | Identified exit to Materials 778 | -10/Materials | Identified exit to Subcaves 811 | -10/Materials | Loaded intel: 18 trap records 833 | -10/Materials | Learned Storage stockpile data 846 | -10/Materials | Learned Materials trap positions 851 | -10/Materials | Identified exit to Mines 852 | -10/Materials | Learned Storage garrison access intel 854 | -10/Materials | Learned 2 Mines zone layouts 866 | -10/Materials | Learned 2 Mines zone layouts 1200 | -10/Materials | Discovered exit to Mines (range 10) 1300 | -10/Materials | Entered Mines 1305 | -10/Mines | Joined a pair of Derelicts in attacking an 0b10 outpost 1440 | -10/Mines | Found a hidden stash of uninstalled traps 1603 | -10/Mines | Build established: Scavenger-Mutant 1627 | -10/Mines | Deemed a non-threat by the Exiles lab entrance 1629 | -10/Mines | Discovered new exit (range 5) 2065 | -10/Mines | Received a Mining Laser from a helpful Derelict 2273 | -10/Mines | Entered Exiles 2273 | -10/Exiles | Accompanied by 1 ally 2315 | -10/Exiles | Met 8R-AWN 2342 | -10/Exiles | Met EX-HEX 2425 | -10/Exiles | Met EX-DEC 2454 | -10/Exiles | Learned location of Zion (-7) 2593 | -10/Exiles | Met EX-BIN 2681 | -10/Exiles | Discovered new exit (range 14) 2698 | -10/Exiles | Entered Mines 2780 | -9/Mines | Discovered new exit (range 12) 2840 | -9/Mines | Discovered new exit (range 5) 2980 | -9/Mines | Received a Rocket Launcher from a helpful Derelict 3367 | -9/Mines | Found a damaged Exp. Sensor Array with a note attached 3373 | -9/Mines | Found Prototype Device 3776 | -9/Mines | Entered Materials 3776 | -8/Materials | Accompanied by 1 ally 3776 | -8/Materials | Evolved 4 slots: Propulsion x1, Utility x2, Weapon x1 3777 | -8/Materials | Identified exit to Storage 3778 | -8/Materials | Loaded intel: 19 trap records 3781 | -8/Materials | Led the pair of lost Derelicts to an unsafe place 4084 | -8/Materials | Build established: Scavenger-Gunner 4328 | -8/Materials | Repaired Rnf. Ion Engine 4362 | -8/Materials | Repaired Hvy. Assault Rifle 4389 | -8/Materials | Repaired Lgt. Armor Plating 5078 | -8/Materials | Discovered new exit (range 15) 5528 | -8/Materials | Discovered new exit (range 7) 5796 | -8/Materials | Learned Storage trap positions 5848 | -8/Materials | Learned location of 1 exit from Lower Caves 5892 | -8/Materials | Learned location of 1 exit from Extension 5927 | -8/Materials | Learned location of Recycling (-8) 5950 | -8/Materials | Identified exit to Factory 5963 | -8/Materials | Learned location of 2 exits from Factory 5986 | -8/Materials | Learned Recycling recycling unit intel 6017 | -8/Materials | Learned location of Extension (-5) 6058 | -8/Materials | Learned Factory terminal intel 6643 | -8/Materials | Garrison activated, responded to threat 6649 | -8/Materials | Identified Exp. Sensor Array 6678 | -8/Materials | Destroyed 8 combat bots 6768 | -8/Materials | Sterilization system engaged 6768 | -8/Materials | Non-combat units ordered to evacuate 6823 | -8/Materials | Identified exit to Garrison 6868 | -8/Materials | Combat units ordered to evacuate 6902 | -8/Materials | Entered Garrison 6902 | -8/Garrison | Discovered recently destroyed garrison 6902 | -8/Garrison | Accompanied by 1 ally 6931 | -8/Garrison | Learned Materials security intel 7018 | -8/Garrison | Build established: Hacker-Gunner 7043 | -8/Garrison | Discovered new exit (range 9) 7206 | -8/Garrison | Phase Generator disabled 7244 | -8/Garrison | Discovered new exit (range 36) 7244 | -8/Garrison | Discovered new exit (range 73) 7244 | -8/Garrison | Discovered new exit (range 73) 7277 | -8/Garrison | Garrison Relay disabled 7516 | -8/Garrison | Garrison Relay disabled 7816 | -8/Garrison | Garrison Relay disabled 7993 | -8/Garrison | Garrison Relay disabled 8024 | -8/Garrison | Build established: Commander-Gunner 8180 | -8/Garrison | Entered Materials 8180 | -8/Materials | Accompanied by 7 allies 8257 | -8/Materials | Identified exit to Garrison 8580 | -8/Materials | First assault squad dispatched 8587 | -8/Materials | Learned location of 1 exit from Extension 8649 | -8/Materials | Learned 2 Lower Caves zone layouts 8650 | -8/Materials | Learned location of Lower Caves (-6) 8651 | -8/Materials | Learned Factory terminal intel 8652 | -8/Materials | Learned 12 Factory zone layouts 8653 | -8/Materials | Learned 4 Recycling zone layouts 8654 | -8/Materials | Learned Storage security intel 8658 | -8/Materials | Learned Factory trap positions 8695 | -8/Materials | Lost 4 parts (1p1n2w) 9031 | -8/Materials | Build established: Scavenger-Gunner 9054 | -8/Materials | Core integrity fell below 50% 9060 | -8/Materials | Lost 3 allies 9071 | -8/Materials | Discovered exit to Factory (range 16) 9401 | -8/Materials | Repaired Gauss Rifle 9440 | -8/Materials | Repaired Arm. Treads? 9496 | -8/Materials | High security lockdown imminent 9510 | -8/Materials | Repaired Corrupted Arm. Treads? 9576 | -8/Materials | High security lockdown engaged 9578 | -8/Materials | Repaired Gauss Rifle 9613 | -8/Materials | Sterilization system engaged 9613 | -8/Materials | Non-combat units ordered to evacuate 9657 | -8/Materials | Entered Storage 9658 | -8/Storage | Identified exit to Recycling 9659 | -8/Storage | Loaded intel: 24 trap records 9662 | -8/Storage | Loaded intel: 1 garrison access location 9669 | -8/Storage | Destroyed 9 combat bots 9826 | -8/Storage | Repaired Missile Launcher 9873 | -8/Storage | Repaired Gauss Rifle 9914 | -8/Storage | Repaired Arm. Treads 9963 | -8/Storage | Repaired Flak Gun? 10008 | -8/Storage | Repaired Hrd. Medium Armor Plating 10060 | -8/Storage | Repaired Imp. Core Shielding 10105 | -8/Storage | Repaired Lgt. Nuclear Core+ 10145 | -8/Storage | Repaired Hpw. Tractor Beam 10184 | -8/Storage | Repaired Adv. Treads 10221 | -8/Storage | Core integrity fell below 20% 10294 | -8/Storage | Repaired Exp. Sensor Array 10491 | -8/Storage | Build established: Scavenger-Tank 10805 | -8/Storage | Discovered exit to Factory (range 5) 11146 | -8/Storage | Repaired Arm. Treads 11191 | -8/Storage | Destroyed self with Shock Bomb Launcher Last Messages --------------- 11160_ U-05 Engineer destroyed. 11161_ Acquired 9 matter. 11161_ Acquired 4 matter. 11161_ K-01 Serf collects debris. 11164_ System corrupted: Heat flow error (+182). 11164_ K-01 Serf collects debris. 11167_ Acquired Recoil Stabilizer. 11168_ K-01 Serf collects debris. 11170_ R-06 Scavenger collects Visual Processing Unit. 11171_ K-01 Serf collects debris. 11181_ GUMSNNSHPVB0%G%SYRJ8/C5R 11182_ K-01 Serf collects debris. 11186_ Acquired 10 matter. 11189_ K-01 Serf collects debris. 11189_ Door malfunctions. 11190_ Acquired 5 matter. 11191_ K-01 Serf destroyed. 11191_ Chain reaction triggered in Corrupted Nuclear Core. Map ----- +----------------------------------------------------+ | | | | | | | | | | | #?????????????#####??????????????????????????????? | | ???????#??# #???????????????????????????? | | ??"""? #??# #???????????????????????????? | | ""!%"? #??# """ """ #???????????????????????????? | | " "=!? #??# """ """ #???????????????????????????? | | "!]"?" #??# """ """ #???????????????????????????? | | "%!"" #??# #???????????????????????????? | | " "" #??# #???????????????????????????? | | = ! #??# #???????????????????????????? | | ###+############+############????????????????????? | | #????????????????????? | | #????????????????????? | | #^^??????????????????? | | ###+#########+##+########% #??????^?????????????? | | # # == # !#????????????????????? | | # # *! " # ! #?^??????????????????? | | # """ # %!" [#=%=#??^?????????????????? | | """ """ #?"!!/" # = "" #=! #????^???????????????? | | """ """ #?""""" # """ + =#????????????????????? | | """ """ #??"""" # """ #*!*#####/#######????????? | | * #??"!!!" # #@%=%= ^^ % ???? | | ! #??""""" # """ #=!!% ^^ ???? | | ####+##+#??????? # """ ; * ! ^^ ! ???? | | ???# #???????## """ ##%##################????? | | ???# #????????# """ ##+#########?????????????? | | #??# #????????# """ ##!* ! #?????????????? | | #### ####?????# # ! !!! #?????????????? | | + #??####?#### !!! #?????????????? | | # ##############????????# !!! #?????????????? | | # # T #????????# #?????????????? | | # # """ ##???????# " " #?????????????? | | # + """ #???????# "R" #?????????????? | | + # """ ##???????# """ #?????????????? | | # # #???##???#####+#####?????????????? | | # ################# ##??????? ??????^^?????????? | | ##### # #???????? ?????^^?????????? | | # #???????? ????^^?????????? | | # = = #?????????###??????????????? | | ##### # "#??????????????????????????? | | # ###???## ## ""#??????????????????????????? | | #+####???#% ## ""#?????????????????????????"? | | ??# ## """#?????????????????????????"G | | ??# ## """#?????????????????????????"" | | ## ## #??????????????????????????? | | """ """ # ####+#####??????????????????????????? | +----------------------------------------------------+ Best States ------------- Heat Dissipation 31 Energy Generation 15 Energy Capacity 265 Matter Stores 300 Matter Capacity 300 Sight Range 16 Robot Scan Range 20 Terrain Scan Range 16 Terrain Scan Density 10 Armor Coverage 375 Resistance: KI 20 Core Shielding 30 Weapon Shielding 33 Evasion (%) 40 Targeting Accuracy 5 Armor Integrity Analysis 30 Recoil Reduction 3 Offensive Hacking 10 Defensive Hacking 10 Item Schematics ----------------- Aerolev Unit | -8/Materials | Scanalyzed Fission Core | -8/Materials | Scanalyzed Recoil Stabilizer | -8/Materials | Scanalyzed Weapon Mount | -8/Materials | Scanalyzed Adv. Targeting Computer | -8/Materials | Scanalyzed Gauss Rifle | -8/Materials | Scanalyzed Plasma Cutter | -8/Materials | Scanalyzed Coolant Injector | -8/Storage | Hacked Med. Reactive Plating | -8/Storage | Hacked Robot Schematics ------------------ None Fabricated ------------ Nothing Repaired ---------- Rnf. Ion Engine | 35% | -8/Materials Hvy. Assault Rifle | 42% | -8/Materials Lgt. Armor Plating | 42% | -8/Materials Gauss Rifle | 1% | -8/Materials Arm. Treads | 13% | -8/Materials Arm. Treads | 88% | -8/Materials | Corrupted Gauss Rifle | 10% | -8/Materials Missile Launcher | 5% | -8/Storage Gauss Rifle | 7% | -8/Storage Arm. Treads | 14% | -8/Storage Flak Gun | 9% | -8/Storage Hrd. Medium Armor Plating | 17% | -8/Storage Imp. Core Shielding | 54% | -8/Storage Lgt. Nuclear Core | 16% | -8/Storage Hpw. Tractor Beam | 40% | -8/Storage Adv. Treads | 50% | -8/Storage Exp. Sensor Array | 62% | -8/Storage Arm. Treads | 36% | -8/Storage Studied --------- Lgt. Nuclear Core | -8/Materials | Hacked Alien Tech Used ----------------- None Achievements -------------- None Challenges ------------ None Game ------ Seed HypercooledMiniExpander Manual? 0 Play Time 01:09:40 Cumulative 629.4 hours Start 2025.11.21 @ 00:07:47 End 2025.11.21 @ 01:21:21 Sessions 1 Manual Loads 0 Difficulty Rogue Special Mode None Game No. 316 Rogue 316 Adventurer 0 Explorer 0 Win Type - Total 7 Types 3/0/2/1/0/0/0/0/0/1 Lore% 87 Gallery% 78 Achievement% 47 Wizard Run 0 Options --------- Layout 2 ASCII 0 Keyboard 1 Movement Vi Keybinds 0 Fullscreen 1 Font 16/SmallcapsGlow Map View 55x47 Zoom Use 0% Tactical HUD 1 Map Filters NONE Filters NONE Steam 0 RUN: b1122aa2-a946-4d2e-9139-17bb36cdfb88